bitfinex/quotes_BTCUSD_20241215
["timestamp","ask_amount","ask_price","bid_price","bid_amount"]
[1734292041046,0.23598498,103150.0,103140.0,1.13687268]
[1734292047670,0.23598498,103150.0,103140.0,1.35477383]
[1734292047894,0.23598498,103150.0,103140.0,1.26761337]
[1734292048546,0.13693095,103150.0,103140.0,1.15161881]
[1734292048767,0.13693095,103150.0,103140.0,1.26761337]
[1734292050610,0.13693095,103150.0,103140.0,1.26688289]
[1734292051320,0.13669664,103150.0,103140.0,1.26688289]
[1734292056087,0.13669664,103150.0,103140.0,1.15088833]
[1734292056272,0.13669664,103150.0,103140.0,1.26688289]
[1734292056402,0.13686904,103150.0,103140.0,1.26688289]
[1734292062370,0.13686904,103150.0,103140.0,1.1361517]
[1734292062580,0.13686904,103150.0,103140.0,1.15089098]
[1734292062988,0.13686904,103150.0,103140.0,1.26688554]
[1734292063754,0.13686904,103150.0,103140.0,1.2668868]
[1734292064342,0.13686904,103150.0,103140.0,1.13655438]
[1734292064532,0.13686904,103150.0,103140.0,1.26728965]
[1734292069983,0.13686904,103150.0,103140.0,1.32528693]
[1734292070199,0.00756904,103150.0,103140.0,3.49839782]
[1734292070409,0.00756904,103150.0,103140.0,3.52139782]
[1734292070631,0.00756904,103150.0,103140.0,3.71496015]
[1734292070837,0.00065602,103150.0,103140.0,3.67328815]
[1734292071295,0.00789727,103150.0,103140.0,3.68918815]
[1734292072129,0.00789727,103150.0,103140.0,3.47629631]
[1734292072356,0.08449727,103150.0,103140.0,1.57183046]
[1734292072539,0.08449727,103150.0,103140.0,1.68782502]
[1734292072808,0.08449727,103150.0,103140.0,1.56746021]
[1734292073035,0.08449727,103150.0,103140.0,1.56746111]
[1734292073677,0.08449727,103150.0,103140.0,1.41922511]
[1734292074726,0.08449727,103150.0,103140.0,1.28852012]
[1734292078172,0.08449727,103150.0,103140.0,1.28814386]
[1734292080003,0.08449727,103150.0,103140.0,1.418848]
[1734292082618,0.08449727,103150.0,103140.0,1.266769]
[1734292082843,0.08449727,103150.0,103140.0,1.555464]
[1734292083276,0.13109727,103150.0,103140.0,1.555464]
[1734292085733,0.13109727,103150.0,103140.0,1.42475986]
[1734292086153,0.13109727,103150.0,103140.0,1.55546807]
[1734292086333,0.13109727,103150.0,103140.0,1.42475986]
[1734292087382,0.13109727,103150.0,103140.0,1.42499389]
[1734292090314,0.13109727,103150.0,103140.0,1.42504161]
[1734292091725,0.13109727,103150.0,103140.0,1.227358]
[1734292091926,0.13109727,103150.0,103140.0,1.421269]
[1734292092561,0.13109727,103150.0,103140.0,1.43848687]
[1734292094848,0.13109727,103150.0,103140.0,1.32249231]
[1734292095047,0.13109727,103150.0,103140.0,1.43848687]
[1734292097232,0.13109727,103150.0,103140.0,1.35133655]
[1734292098680,0.2301513,103150.0,103140.0,0.97550572]
[1734292098866,0.4240433,103150.0,103140.0,0.97550572]
[1734292099062,0.4240433,103150.0,103140.0,0.97690233]
[1734292099387,0.4240433,103150.0,103140.0,0.2372459]
[1734292099590,0.6179483,103150.0,103140.0,0.05799728]
[1734292100757,0.5413483,103150.0,103140.0,0.05799728]
[1734292100970,0.6225483,103150.0,103140.0,0.05799728]
[1734292101962,0.6225483,103150.0,103140.0,0.05808348]
[1734292104353,0.6220483,103150.0,103140.0,0.05808348]
[1734292106836,0.6220483,103150.0,103140.0,8.62e-05]
[1734292107244,0.6220483,103150.0,103140.0,0.05808348]
[1734292119887,0.6220483,103150.0,103140.0,8.62e-05]
[1734292128142,0.6220483,103150.0,103140.0,0.05808348]
[1734292129243,0.6220483,103150.0,103140.0,8.62e-05]
[1734292130220,0.6720483,103150.0,103140.0,8.62e-05]
[1734292130504,0.7220483,103150.0,103140.0,8.62e-05]
[1734292132712,0.80884357,103150.0,103140.0,8.62e-05]
[1734292134989,0.80883778,103150.0,103140.0,8.62e-05]
[1734292138507,0.93902201,103150.0,103140.0,8.62e-05]
[1734292140910,1.03807604,103150.0,103140.0,8.62e-05]
[1734292141123,1.06260098,103150.0,103140.0,8.62e-05]
[1734292142812,1.06036938,103150.0,103140.0,8.62e-05]
[1734292143043,1.06059545,103150.0,103140.0,8.62e-05]
[1734292143457,1.06859273,103150.0,103140.0,8.62e-05]
[1734292143759,1.38474607,103150.0,103140.0,8.62e-05]
[1734292144025,1.32674879,103150.0,103140.0,8.62e-05]
[1734292144574,1.23990907,103150.0,103140.0,8.62e-05]
[1734292145089,1.14085504,103150.0,103140.0,8.62e-05]
[1734292147636,1.06060786,103150.0,103140.0,0.11608076]
[1734292147906,0.51276383,103150.0,103140.0,0.05808348]
[1734292148176,0.1854197,103150.0,103140.0,0.11608076]
[1734292154380,0.1042197,103150.0,103140.0,0.36798904]
[1734292154669,0.1042197,103150.0,103140.0,0.42918904]
[1734292154930,0.1042197,103150.0,103140.0,0.64681397]
[1734292155167,0.1042197,103150.0,103140.0,0.82091392]
[1734292155433,0.1042197,103150.0,103140.0,1.09722244]
[1734292155738,0.00516567,103150.0,103140.0,1.09722244]
[1734292155963,0.00516567,103150.0,103140.0,2.96307844]
[1734292156735,0.00516567,103150.0,103140.0,2.96370986]
[1734292157590,0.00516567,103150.0,103140.0,2.78977139]
[1734292158087,0.00516567,103150.0,103140.0,2.96370986]
[1734292158545,0.00516567,103150.0,103140.0,2.78977139]
[1734292160618,0.00516567,103150.0,103140.0,2.51246812]
[1734292161076,0.00516567,103150.0,103140.0,2.53424752]
[1734292161310,0.00516567,103150.0,103140.0,2.40379367]
[1734292164879,0.00516567,103150.0,103140.0,2.53424752]
[1734292165224,0.00516567,103150.0,103140.0,2.8731511]
[1734292167083,0.00516567,103150.0,103140.0,2.69915926]
[1734292167291,0.00516567,103150.0,103140.0,2.84875772]
[1734292167496,0.00516567,103150.0,103140.0,2.44254767]
[1734292168568,0.00516567,103150.0,103140.0,1.76566116]
[1734292168781,0.00516567,103150.0,103140.0,1.82365844]
[1734292169615,0.00516567,103150.0,103140.0,1.78490444]
[1734292170900,0.00516567,103150.0,103140.0,1.76900444]
[1734292172658,0.00516567,103150.0,103140.0,1.72370444]
[1734292173675,0.00516567,103150.0,103140.0,1.66570716]
[1734292173879,0.00516567,103150.0,103140.0,1.72370444]
[1734292177578,0.00516567,103150.0,103140.0,2.59277744]
[1734292177784,0.00516567,103150.0,103140.0,2.21298844]
[1734292181232,0.00516567,103150.0,103140.0,2.0389966]
[1734292181446,0.00516567,103150.0,103140.0,1.80799744]
[1734292183030,0.08846567,103150.0,103140.0,1.80799744]
[1734292185351,0.08846567,103150.0,103140.0,1.89477854]
[1734292189022,0.00516567,103150.0,103140.0,1.89477854]
[1734292189229,0.08846567,103150.0,103140.0,1.89477854]
[1734292189437,0.08846567,103150.0,103140.0,2.30320589]
[1734292191509,0.08846567,103150.0,103140.0,2.4767681]
[1734292192479,0.08846567,103150.0,103140.0,2.69372086]
[1734292193334,0.08846567,103150.0,103140.0,2.69553941]
[1734292193659,0.08846567,103150.0,103140.0,2.60857752]
[1734292194400,0.08846567,103150.0,103140.0,2.47813469]
[1734292197433,0.08846567,103150.0,103140.0,2.30421091]
[1734292197434,0.00516567,103150.0,103140.0,2.30421091]
[1734292197639,0.00516567,103150.0,103140.0,2.32721091]
[1734292197843,0.00516567,103150.0,103140.0,2.51518152]
[1734292198045,0.00516567,103150.0,103140.0,2.77606719]
[1734292198933,0.00516567,103150.0,103140.0,2.80207104]
[1734292199481,0.00516567,103150.0,103140.0,1.53384204]
[1734292199760,0.00516567,103150.0,103140.0,6.54003304]
[1734292199974,0.00516567,103150.0,103140.0,6.4269014]
[1734292200179,0.00516567,103150.0,103140.0,6.8121154]
[1734292200586,0.00015602,103150.0,103140.0,6.8121154]
[1734292202238,0.00015602,103150.0,103140.0,7.1420154]
[1734292207789,0.00015602,103150.0,103140.0,7.13131482]
[1734292211433,0.00015602,103150.0,103140.0,7.0068014]
[1734292212063,0.00015602,103150.0,103140.0,6.9568014]
[1734292212290,0.00015602,103150.0,103140.0,5.5494684]
[1734292212490,0.00015602,103150.0,103140.0,5.1387364]
[1734292215228,0.00015602,103150.0,103140.0,5.1887364]
[1734292215432,0.00015602,103150.0,103140.0,5.1387364]
[1734292216487,0.07635602,103150.0,103140.0,5.1387364]
[1734292217552,0.07635602,103150.0,103140.0,5.1887364]
[1734292219026,0.00015602,103150.0,103140.0,5.2046364]
[1734292220665,0.00015602,103150.0,103140.0,5.24567769]
[1734292223057,0.00015602,103150.0,103140.0,5.24666787]
[1734292224858,0.00015602,103150.0,103140.0,5.27370628]
[1734292226878,0.00015602,103150.0,103140.0,5.25780628]
[1734292227338,0.00015602,103150.0,103140.0,5.08381444]
[1734292227545,0.00015602,103150.0,103140.0,5.25780628]
[1734292229371,0.00015602,103150.0,103140.0,2.05508028]
[1734292229578,0.00015602,103150.0,103140.0,7.01127128]
[1734292229741,0.006148,103150.0,103140.0,7.01127128]
[1734292229947,0.00015602,103150.0,103140.0,7.01127128]
[1734292231167,0.07575602,103150.0,103140.0,7.01127128]
[1734292231791,0.07575602,103150.0,103140.0,7.01342167]
[1734292233755,0.07575602,103150.0,103140.0,6.54237895]
[1734292233968,0.07575602,103150.0,103140.0,6.14692179]
[1734292234498,0.07575602,103150.0,103140.0,6.1662554]
[1734292236319,0.07575602,103150.0,103140.0,6.3162554]
[1734292239345,0.07575602,103150.0,103140.0,6.3163416]
[1734292241352,0.07575602,103150.0,103140.0,6.70197181]
[1734292241561,0.07575602,103150.0,103140.0,6.96296837]
[1734292244023,0.07575602,103150.0,103140.0,7.08734955]
[1734292247830,0.07575602,103150.0,103140.0,6.55677692]
[1734292253274,0.07575602,103150.0,103140.0,6.69087692]
[1734292253922,0.07575602,103150.0,103140.0,6.6950475]
[1734292254531,0.07575602,103150.0,103140.0,6.69256795]
[1734292257358,0.07575602,103150.0,103140.0,6.66839309]
[1734292257704,0.07575602,103150.0,103140.0,6.79295979]
[1734292259035,0.1241724,103160.0,103150.0,0.15]
[1734292259299,0.1118544,103160.0,103150.0,5.42655772]
[1734292259445,0.11610679,103160.0,103150.0,6.27734604]
[1734292261459,0.11610679,103160.0,103150.0,6.3933406]
[1734292261677,0.07930691,103160.0,103150.0,6.19530553]
[1734292261876,0.00430691,103160.0,103150.0,6.31987906]
[1734292262290,5.452e-05,103160.0,103150.0,6.31792798]
[1734292262709,0.07505452,103160.0,103150.0,6.31792798]
[1734292266714,0.07505452,103160.0,103150.0,6.31661517]
[1734292267404,0.07505452,103160.0,103150.0,6.33563743]
[1734292268021,0.07505452,103160.0,103150.0,6.3354997]
[1734292271817,0.07505452,103160.0,103150.0,1.3793087]
[1734292272011,0.07505452,103160.0,103150.0,6.3354997]
[1734292272206,0.07904801,103160.0,103150.0,6.3354997]
[1734292272439,0.07505452,103160.0,103150.0,6.3354997]
[1734292273133,0.07505452,103160.0,103150.0,6.3355859]
[1734292273335,0.07522692,103160.0,103150.0,6.3355859]
[1734292273755,0.07522692,103160.0,103150.0,6.33251032]
[1734292276237,0.07522692,103160.0,103150.0,6.33233955]
[1734292278459,0.12392692,103160.0,103150.0,6.33233955]
[1734292284776,0.12392692,103160.0,103150.0,6.34442223]
[1734292285373,0.12392692,103160.0,103150.0,6.34508022]
[1734292297742,0.12985619,103160.0,103150.0,6.34508022]
[1734292298161,0.12392692,103160.0,103150.0,6.34508022]
[1734292299192,0.12392692,103160.0,103150.0,6.34403668]
[1734292301835,0.12985619,103160.0,103150.0,6.34403668]
[1734292304433,0.12985619,103160.0,103150.0,1.38784568]
[1734292304655,0.12985619,103160.0,103150.0,1.00784141]
[1734292304843,0.12985619,103160.0,103150.0,5.96403241]
[1734292305022,0.12985619,103160.0,103150.0,6.34403668]
[1734292305218,0.12392692,103160.0,103150.0,6.34403668]
[1734292305423,0.12985619,103160.0,103150.0,6.34403668]
[1734292308441,0.12985619,103160.0,103150.0,6.34448875]
[1734292308442,0.10053867,103160.0,103150.0,6.34448875]
[1734292308826,0.0946094,103160.0,103150.0,6.34448875]
[1734292310290,0.0946094,103160.0,103150.0,6.21349147]
[1734292310494,0.0946094,103160.0,103150.0,5.13346601]
[1734292310884,0.10053867,103160.0,103150.0,5.13346601]
[1734292311285,0.10053867,103160.0,103150.0,5.08696901]
[1734292313802,0.10053867,103160.0,103150.0,5.05210801]
[1734292314452,0.10053867,103160.0,103150.0,2.31089345]
[1734292314661,0.1995927,103160.0,103150.0,2.42688801]
[1734292315086,0.1995927,103160.0,103150.0,1.13272301]
[1734292315294,0.1995927,103160.0,103150.0,2.81001159]
[1734292315511,0.1995927,103160.0,103150.0,3.19024601]
[1734292317050,0.1995927,103160.0,103150.0,2.2047087]
[1734292317471,0.1995927,103160.0,103150.0,2.61642178]
[1734292317684,0.1995927,103160.0,103150.0,2.61641207]
[1734292318541,0.1995927,103160.0,103150.0,2.61639816]
[1734292319381,0.1995927,103160.0,103150.0,2.6039076]
[1734292319576,0.1995927,103160.0,103150.0,2.52810316]
[1734292320695,0.1995927,103160.0,103150.0,2.50290916]
[1734292320881,0.1995927,103160.0,103150.0,2.50290625]
[1734292321320,0.1995927,103160.0,103150.0,2.48740725]
[1734292324597,0.1995927,103160.0,103150.0,2.48736558]
[1734292326695,0.1995927,103160.0,103150.0,2.41764058]
[1734292326915,0.1995927,103160.0,103150.0,0.87839042]
[1734292327134,0.1995927,103160.0,103150.0,0.81516623]
[1734292327356,0.1995927,103160.0,103150.0,0.74251506]
[1734292327564,0.1995927,103160.0,103150.0,0.56831033]
[1734292327771,0.1995927,103160.0,103150.0,0.07710574]
[1734292327985,0.1995927,103160.0,103150.0,0.16421017]
[1734292328616,0.1995927,103160.0,103150.0,0.07710574]
[1734292329007,0.1995927,103160.0,103150.0,0.42099774]
[1734292337000,0.1995927,103160.0,103150.0,0.36300046]
[1734292337195,0.1995927,103160.0,103150.0,0.42099774]
[1734292345397,0.2045927,103160.0,103150.0,0.42099774]
[1734292354532,0.2045927,103160.0,103150.0,0.22710574]
[1734292354960,0.2045927,103160.0,103150.0,0.16910846]
[1734292355103,0.2045927,103160.0,103150.0,0.1500862]
[1734292355307,0.2045927,103160.0,103150.0,8.62e-05]
[1734292355308,0.3984657,103160.0,103150.0,8.62e-05]
[1734292355900,0.2045927,103160.0,103150.0,0.05872584]
[1734292356123,0.2045927,103160.0,103150.0,0.72861448]
[1734292356343,0.15881174,103160.0,103150.0,0.94601456]
[1734292356552,0.11307474,103160.0,103150.0,0.94601456]
[1734292356772,0.11307474,103160.0,103150.0,1.11993463]
[1734292357420,0.11307474,103160.0,103150.0,1.33733472]
[1734292358058,0.11307474,103160.0,103150.0,1.11993463]
[1734292358463,0.11307474,103160.0,103150.0,1.33733472]
[1734292359739,0.11307474,103160.0,103150.0,1.33741547]
[1734292360166,0.11307474,103160.0,103150.0,1.33613075]
[1734292360383,0.11307474,103160.0,103150.0,1.24915918]
[1734292363164,0.11307474,103160.0,103150.0,1.11870183]
[1734292365473,0.11307474,103160.0,103150.0,0.85134483]
[1734292365678,0.11307474,103160.0,103150.0,3.09586283]
[1734292367656,0.11307474,103160.0,103150.0,2.62021483]
[1734292368478,0.11307474,103160.0,103150.0,2.58922483]
[1734292368765,0.11307474,103160.0,103150.0,2.57371683]
[1734292368986,0.11307474,103160.0,103150.0,2.54950683]
[1734292369852,0.11307474,103160.0,103150.0,2.60750411]
[1734292370154,0.11307474,103160.0,103150.0,2.55640105]
[1734292370416,0.18987474,103160.0,103150.0,2.55640105]
[1734292372102,0.18987474,103160.0,103150.0,2.55631485]
[1734292372305,0.18987474,103160.0,103150.0,2.61431213]
[1734292373396,0.18987474,103160.0,103150.0,2.61444512]
[1734292374869,0.18987474,103160.0,103150.0,2.55644784]
[1734292375315,0.18987474,103160.0,103150.0,2.61444512]
[1734292376779,0.18987474,103160.0,103150.0,2.61453132]
[1734292377138,0.18987474,103160.0,103150.0,2.74501747]
[1734292377501,0.18987474,103160.0,103150.0,3.23422947]
[1734292377663,0.18987474,103160.0,103150.0,3.21498119]
[1734292377871,0.18987474,103160.0,103150.0,3.19076219]
[1734292379257,0.18987474,103160.0,103150.0,3.14426319]
[1734292380301,0.18987474,103160.0,103150.0,3.07354619]
[1734292380502,0.18987474,103160.0,103150.0,3.04255419]
[1734292382138,0.18987474,103160.0,103150.0,2.91206804]
[1734292383116,0.18987474,103160.0,103150.0,2.63115444]
[1734292383937,0.18987474,103160.0,103150.0,2.88304372]
[1734292385212,0.18987474,103160.0,103150.0,2.82504644]
[1734292385916,0.18987474,103160.0,103150.0,2.82503141]
[1734292386123,0.18987474,103160.0,103150.0,2.82503144]
[1734292386326,0.18987474,103160.0,103150.0,2.88302872]
[1734292387667,0.18987474,103160.0,103150.0,3.10050619]
[1734292388281,0.18987474,103160.0,103150.0,3.10051684]
[1734292391197,0.18987474,103160.0,103150.0,2.9700277]
[1734292392135,0.18987474,103160.0,103150.0,3.10053644]
[1734292392789,0.18987474,103160.0,103150.0,2.9700277]
[1734292393226,0.18987474,103160.0,103150.0,2.79604217]
[1734292395633,0.18987474,103160.0,103150.0,3.16992471]
[1734292395895,0.18759354,103160.0,103150.0,3.21342109]
[1734292396113,0.18759354,103160.0,103150.0,3.21801811]
[1734292396114,7.5e-07,103160.0,103150.0,3.21801811]
[1734292396329,0.0483726,103180.0,103160.0,5.50445702]
[1734292396330,0.0001726,103180.0,103160.0,5.50445702]
[1734292396540,0.0001726,103180.0,103170.0,5.49869887]
[1734292396747,0.0001726,103180.0,103170.0,5.95986307]
[1734292396956,0.0001726,103180.0,103170.0,5.71345458]
[1734292397179,0.0001726,103180.0,103170.0,5.33807086]
[1734292397391,0.0001726,103180.0,103170.0,5.97462057]
[1734292397600,0.0001726,103180.0,103170.0,5.33807086]
[1734292397783,0.0001726,103180.0,103170.0,5.9744318]
[1734292398025,0.0001726,103180.0,103170.0,5.33807086]
[1734292398454,0.0001726,103180.0,103170.0,5.09006486]
[1734292398664,0.0001726,103180.0,103170.0,5.22898991]
[1734292399325,0.0001726,103180.0,103170.0,4.41351591]
[1734292399954,0.0001726,103180.0,103170.0,4.41360211]
[1734292400391,0.0001726,103180.0,103170.0,4.43244007]
[1734292401228,0.01697259,103190.0,103180.0,0.32399184]
[1734292401439,0.01697259,103190.0,103180.0,2.72127249]
[1734292401648,0.01697259,103190.0,103180.0,2.84684333]
[1734292402113,0.01697259,103190.0,103180.0,2.79841633]
[1734292402917,1.0482,103200.0,103180.0,3.00700537]
[1734292403116,1.14725403,103200.0,103190.0,1.4805846]
[1734292403363,1.14725403,103200.0,103190.0,1.3769616]
[1734292403884,1.14725403,103200.0,103190.0,1.5707786]
[1734292404096,1.23005403,103200.0,103190.0,1.5707786]
[1734292405658,1.23005403,103200.0,103190.0,1.65768081]
[1734292407371,1.23005403,103200.0,103190.0,1.5707786]
[1734292409767,1.23005403,103200.0,103190.0,1.65768081]
[1734292410574,1.23005403,103200.0,103190.0,1.67730634]
[1734292412101,1.23022643,103200.0,103190.0,1.67730634]
[1734292413542,1.23022643,103200.0,103190.0,1.69595246]
[1734292413863,1.23022643,103200.0,103190.0,1.69583458]
[1734292414064,1.23022643,103200.0,103190.0,1.4322889]
[1734292414319,1.23022643,103200.0,103190.0,1.45905025]
[1734292415104,1.23022643,103200.0,103190.0,2.43803525]
[1734292415307,1.23022643,103200.0,103190.0,2.43416625]
[1734292415528,1.23022643,103200.0,103190.0,2.39252125]
[1734292416151,1.23022643,103200.0,103190.0,2.54252125]
[1734292416364,1.23022643,103200.0,103190.0,2.37595325]
[1734292416570,1.23022643,103200.0,103190.0,1.97990425]
[1734292417551,1.23022643,103200.0,103190.0,1.97528673]
[1734292421313,1.23022643,103200.0,103190.0,1.95785873]
[1734292422654,1.23022643,103200.0,103190.0,0.91467965]
[1734292422862,1.23022643,103200.0,103190.0,0.58143993]
[1734292423068,1.23022643,103200.0,103190.0,0.49808321]
[1734292423687,1.23022643,103200.0,103190.0,0.49816941]
[1734292423897,1.23022643,103200.0,103190.0,0.38217485]
[1734292424106,1.23022643,103200.0,103190.0,0.44017213]
[1734292424532,0.23022643,103200.0,103190.0,0.26599456]
[1734292424747,0.23022643,103200.0,103190.0,0.47928494]
[1734292426237,0.23022643,103200.0,103190.0,0.01947338]
[1734292426485,0.23022643,103200.0,103190.0,0.16947338]
[1734292426701,0.23022643,103200.0,103190.0,0.22747066]
[1734292432275,0.23022643,103200.0,103190.0,0.42128766]
[1734292434931,0.23022643,103200.0,103190.0,0.47928494]
[1734292435335,0.23022643,103200.0,103190.0,0.42128766]
[1734292435546,0.14742643,103200.0,103190.0,0.48402278]
[1734292437012,0.14742643,103200.0,103190.0,0.84424278]
[1734292437013,0.09922643,103200.0,103190.0,0.84424278]
[1734292437217,0.09922643,103200.0,103190.0,0.93111045]
[1734292437435,0.09922643,103200.0,103190.0,1.06141196]
[1734292437827,0.09922643,103200.0,103190.0,1.23514731]
[1734292439309,0.09922643,103200.0,103190.0,0.56782007]
[1734292439491,0.09922643,103200.0,103190.0,0.76163707]
[1734292439727,0.09922643,103200.0,103190.0,0.89193858]
[1734292440786,0.09922643,103200.0,103190.0,0.89225081]
[1734292441448,0.09922643,103200.0,103190.0,1.04225081]
[1734292441662,0.09922643,103200.0,103190.0,1.06208268]
[1734292443563,0.0001724,103200.0,103190.0,1.12007996]
[1734292443795,0.0001724,103200.0,103190.0,1.38422963]
[1734292444330,0.0001724,103200.0,103190.0,1.29723707]
[1734292445505,0.0001724,103200.0,103190.0,1.38424918]
[1734292445730,0.0001724,103200.0,103190.0,1.29723707]
[1734292445933,0.0001724,103200.0,103190.0,1.38422963]
[1734292446487,0.0001724,103200.0,103190.0,1.11476309]
[1734292446488,4e-07,103200.0,103190.0,1.11476309]
[1734292446638,4e-07,103200.0,103190.0,1.12586542]
[1734292446844,4e-07,103200.0,103190.0,0.75454309]
[1734292447549,4e-07,103200.0,103190.0,0.75462929]
[1734292449309,4e-07,103200.0,103190.0,1.01543983]
[1734292451218,4e-07,103200.0,103190.0,0.83757549]
[1734292451426,4e-07,103200.0,103190.0,0.77334022]
[1734292451601,4e-07,103200.0,103190.0,0.96715722]
[1734292453333,4e-07,103200.0,103190.0,0.96710054]
[1734292453513,4e-07,103200.0,103190.0,1.1408486]
[1734292456322,4e-07,103200.0,103190.0,0.96685676]
[1734292456565,4e-07,103200.0,103190.0,0.56494899]
[1734292456777,4e-07,103200.0,103190.0,0.75876599]
[1734292458948,4e-07,103200.0,103190.0,0.90876599]
[1734292459127,4e-07,103200.0,103190.0,0.90885219]
[1734292460198,4e-07,103200.0,103190.0,0.92868176]
[1734292461247,4e-07,103200.0,103190.0,0.93154347]
[1734292462267,4e-07,103200.0,103190.0,0.93126456]
[1734292462815,4e-07,103200.0,103190.0,0.93106456]
[1734292465455,4e-07,103200.0,103190.0,1.06126423]
[1734292466142,4e-07,103200.0,103190.0,0.93086456]
[1734292466493,4e-07,103200.0,103190.0,0.75722979]
[1734292466869,4e-07,103200.0,103190.0,0.75702979]
[1734292467784,4e-07,103200.0,103190.0,0.75682979]
[1734292468934,0.07637582,103210.0,103200.0,3.381885]
[1734292469306,0.0765395,103210.0,103200.0,4.14023849]
[1734292469927,0.0765395,103210.0,103200.0,4.35728196]
[1734292470134,0.0765395,103210.0,103200.0,4.35727925]
[1734292473589,0.0765395,103210.0,103200.0,4.27049004]
[1734292474865,0.00016368,103210.0,103200.0,4.27049004]
[1734292475072,0.00016368,103210.0,103200.0,5.86460816]
[1734292476345,0.00016368,103210.0,103200.0,6.18473222]
[1734292476346,6.8e-07,103210.0,103200.0,6.18473222]
[1734292476553,6.8e-07,103210.0,103200.0,1.22854122]
[1734292476754,6.8e-07,103210.0,103200.0,0.859042]
[1734292477379,6.8e-07,103210.0,103200.0,1.09219603]
[1734292477837,0.00013308,103220.0,103210.0,5.28018284]
[1734292478042,0.0001876,103220.0,103210.0,5.67095456]
[1734292478259,0.0001876,103220.0,103210.0,5.86473356]
[1734292478472,0.07573642,103230.0,103210.0,5.69105724]
[1734292478685,0.07573642,103230.0,103220.0,5.55590142]
[1734292478894,0.07573642,103230.0,103220.0,5.74869278]
[1734292479321,0.07573642,103230.0,103220.0,5.96578818]
[1734292479554,0.0471724,103240.0,103220.0,6.38762473]
[1734292479767,0.0471724,103240.0,103230.0,5.74971388]
[1734292479981,0.0471724,103240.0,103230.0,5.87899296]
[1734292480186,0.0471724,103240.0,103230.0,5.90566775]
[1734292480390,0.0471724,103240.0,103230.0,5.90562698]
[1734292480613,0.0471724,103240.0,103230.0,5.77539606]
[1734292481458,0.0001724,103240.0,103230.0,5.89139062]
[1734292481658,0.0001724,103240.0,103230.0,5.89655972]
[1734292481936,0.0001724,103240.0,103230.0,5.89635972]
[1734292484718,0.0001724,103240.0,103230.0,5.89618475]
[1734292484923,0.0001724,103240.0,103230.0,5.91595241]
[1734292486344,0.0001724,103240.0,103230.0,6.04612914]
[1734292486545,0.0001724,103240.0,103230.0,5.94896386]
[1734292486756,0.0786724,103240.0,103230.0,4.23380286]
[1734292486958,0.0786724,103240.0,103230.0,4.3154196]
[1734292487390,0.0786724,103240.0,103230.0,4.40948562]
[1734292487593,0.0786724,103240.0,103230.0,2.98520183]
[1734292487797,0.1256724,103240.0,103230.0,2.98520183]
[1734292488214,0.1256724,103240.0,103230.0,2.92985181]
[1734292488868,0.1256724,103240.0,103230.0,3.26029915]
[1734292489079,0.1256724,103240.0,103230.0,2.98784909]
[1734292489278,0.1256724,103240.0,103230.0,2.92985181]
[1734292489487,0.1256724,103240.0,103230.0,2.92986143]
[1734292489905,0.1256724,103240.0,103230.0,2.84306597]
[1734292490381,0.1256724,103240.0,103230.0,2.98785841]
[1734292490581,0.1256724,103240.0,103230.0,2.84306597]
[1734292490788,0.1256724,103240.0,103230.0,2.92986551]
[1734292490977,0.1256724,103240.0,103230.0,3.20241705]
[1734292492710,0.1256724,103240.0,103230.0,2.84306597]
[1734292492915,0.1256724,103240.0,103230.0,2.92987157]
[1734292493142,0.1256724,103240.0,103230.0,2.84306597]
[1734292493382,0.1256724,103240.0,103230.0,1.86921416]
[1734292493611,0.1256724,103240.0,103230.0,1.83049816]
[1734292494029,0.1256724,103240.0,103230.0,1.83035171]
[1734292494478,0.1256724,103240.0,103230.0,1.65682339]
[1734292494673,0.1256724,103240.0,103230.0,1.83043791]
[1734292495031,0.1256724,103240.0,103230.0,1.83591457]
[1734292496953,0.1256724,103240.0,103230.0,1.66230005]
[1734292497732,0.1256724,103240.0,103230.0,1.83591457]
[1734292498405,0.1256724,103240.0,103230.0,1.14868857]
[1734292498559,0.1256724,103240.0,103230.0,5.51510457]
[1734292498900,0.1256724,103240.0,103230.0,3.30394505]
[1734292499457,0.13018969,103240.0,103230.0,3.30394505]
[1734292499671,0.1256724,103240.0,103230.0,3.30394505]
[1734292500314,0.1256724,103240.0,103230.0,2.64963205]
[1734292500522,0.1256724,103240.0,103230.0,2.31376605]
[1734292501148,0.27472643,103240.0,103230.0,1.46987249]
[1734292501369,0.2792457,103240.0,103230.0,1.18246734]
[1734292501754,0.2792457,103240.0,103230.0,1.18247199]
[1734292502407,0.2792457,103240.0,103230.0,1.58643125]
[1734292503559,0.2792457,103240.0,103230.0,1.76005507]
[1734292503970,0.2292457,103240.0,103230.0,1.76005507]
[1734292504605,0.13019167,103240.0,103230.0,1.76005507]
[1734292505024,0.08319167,103240.0,103230.0,1.76005507]
[1734292505236,0.08319167,103240.0,103230.0,1.97708484]
[1734292505640,0.08319167,103240.0,103230.0,1.89027293]
[1734292505848,0.08319167,103240.0,103230.0,1.97708987]
[1734292506146,0.08319167,103240.0,103230.0,1.97576045]
[1734292506343,0.08319167,103240.0,103230.0,1.88894362]
[1734292506546,0.08319167,103240.0,103230.0,1.97576225]
[1734292507275,0.08319167,103240.0,103230.0,1.75873248]
[1734292507751,0.08319167,103240.0,103230.0,1.97576225]
[1734292508183,0.08319167,103240.0,103230.0,1.75873248]
[1734292510205,0.08319167,103240.0,103230.0,1.64273792]
[1734292510559,0.08319167,103240.0,103230.0,1.97576225]
[1734292511913,0.08319167,103240.0,103230.0,1.75873248]
[1734292512113,0.13109167,103240.0,103230.0,1.75873248]
[1734292513786,0.13109167,103240.0,103230.0,1.97576225]
[1734292514610,0.13109167,103240.0,103230.0,1.8909559]
[1734292515012,0.13109167,103240.0,103230.0,1.97785325]
[1734292515467,0.13109167,103240.0,103230.0,1.97786564]
[1734292515675,0.2301457,103240.0,103230.0,1.86187108]
[1734292515896,0.2801457,103240.0,103230.0,0.42139314]
[1734292516528,0.2801457,103240.0,103230.0,0.47939042]
[1734292518443,0.2801457,103240.0,103230.0,0.56630016]
[1734292518644,0.2801457,103240.0,103230.0,0.47939042]
[1734292519349,0.2801457,103240.0,103230.0,0.56630016]
[1734292520452,0.2801457,103240.0,103230.0,0.97222659]
[1734292523395,0.2801457,103240.0,103230.0,0.69664302]
[1734292523603,0.2801457,103240.0,103230.0,0.97230518]
[1734292524807,0.2801457,103240.0,103230.0,0.56630016]
[1734292525321,0.2801457,103240.0,103230.0,0.56636929]
[1734292525880,0.2801457,103240.0,103230.0,0.50837201]
[1734292527304,0.2801457,103240.0,103230.0,0.13652239]
[1734292527508,0.2801457,103240.0,103230.0,0.07785114]
[1734292528055,0.2801457,103240.0,103230.0,0.27159314]
[1734292529856,0.2801457,103240.0,103230.0,0.42159314]
[1734292531455,0.2301457,103240.0,103230.0,0.40182548]
[1734292534519,0.4238687,103240.0,103230.0,0.20808348]
[1734292536425,0.2301457,103240.0,103230.0,0.40182548]
[1734292537090,0.4238687,103240.0,103230.0,0.40182548]
[1734292537778,0.4238687,103240.0,103230.0,0.20808348]
[1734292545532,0.2301457,103240.0,103230.0,0.40182548]
[1734292556839,0.2301457,103240.0,103230.0,0.05799728]
[1734292557282,0.2301457,103240.0,103230.0,0.25173928]
[1734292558983,0.2301457,103240.0,103230.0,0.40173928]